[Event "Titled Tuesday Blitz November 14 Early 2023"]
[White "Begmuratov, Alisher"]
[Black "Alekseenko, Kirill"]
[WhiteFideId "14203367"]
[BlackFideId "4135539"]
[WhiteElo "2721"]
[BlackElo "2909"]
[Result "0-1"]
[Round "5"]
[TimeControl "180+1"]
[Date "2023.11.14"]
[WhiteClock "0:00:15"]
[BlackClock "0:00:42"]
[Board "16"]

1. c4 {[%clk 0:03:00]}  e5 {[%clk 0:02:59]} 2. g3 {[%clk 0:03:00]}  Nc6 {[%clk 0:02:59]} 3. Bg2 {[%clk 0:02:59]}  g6 {[%clk 0:02:59]} 4. Nc3 {[%clk 0:02:59]}  d6 {[%clk 0:02:59]} 5. Nf3 {[%clk 0:02:57]}  Bg7 {[%clk 0:02:58]} 6. O-O {[%clk 0:02:57]}  Nge7 {[%clk 0:02:53]} 7. Rb1 {[%clk 0:02:57]}  a5 {[%clk 0:02:52]} 8. a3 {[%clk 0:02:56]}  Bf5 {[%clk 0:02:46]} 9. d3 {[%clk 0:02:54]}  Qd7 {[%clk 0:02:46]} 10. Nd2 {[%clk 0:02:50]}  Bh3 {[%clk 0:02:42]} 11. b4 {[%clk 0:02:49]}  axb4 {[%clk 0:02:40]} 12. axb4 {[%clk 0:02:49]}  h5 {[%clk 0:02:40]} 13. b5 {[%clk 0:02:48]}  Nd8 {[%clk 0:02:37]} 14. f3 {[%clk 0:02:20]}  Bxg2 {[%clk 0:02:30]} 15. Kxg2 {[%clk 0:02:21]}  h4 {[%clk 0:02:28]} 16. g4 {[%clk 0:02:21]}  f5 {[%clk 0:02:22]} 17. h3 {[%clk 0:02:20]}  e4 {[%clk 0:02:16]} 18. Bb2 {[%clk 0:02:16]}  e3 {[%clk 0:02:12]} 19. Nb3 {[%clk 0:02:14]}  Ne6 {[%clk 0:02:09]} 20. Ra1 {[%clk 0:01:52]}  O-O {[%clk 0:01:58]} 21. Qc1 {[%clk 0:01:37]}  Rxa1 {[%clk 0:01:55]} 22. Bxa1 {[%clk 0:01:36]}  Nf4+ {[%clk 0:01:43]} 23. Kh1 {[%clk 0:01:31]}  Qe6 {[%clk 0:01:40]} 24. d4 {[%clk 0:01:15]}  Nxh3 {[%clk 0:01:09]} 25. Nd5 {[%clk 0:00:36]}  Nxd5 {[%clk 0:00:59]} 26. cxd5 {[%clk 0:00:36]}  Qxd5 {[%clk 0:00:59]} 27. Qxe3 {[%clk 0:00:36]}  fxg4 {[%clk 0:00:58]} 28. Nd2 {[%clk 0:00:32]}  g3 {[%clk 0:00:54]} 29. Qe4 {[%clk 0:00:26]}  Nf2+ {[%clk 0:00:49]} 30. Rxf2 {[%clk 0:00:22]}  Qxe4 {[%clk 0:00:50]} 31. Nxe4 {[%clk 0:00:21]}  gxf2 {[%clk 0:00:50]} 32. Nxf2 {[%clk 0:00:22]}  Rf5 {[%clk 0:00:48]} 33. Bc3 {[%clk 0:00:19]}  Rxb5 {[%clk 0:00:47]} 34. Kg2 {[%clk 0:00:20]}  Rb3 {[%clk 0:00:42]} 35. Be1 {[%clk 0:00:15]}  Bxd4 {[%clk 0:00:42]} 0-1


[Site "https://www.chess.com"]

[Event "Titled Tuesday Blitz November 14 Early 2023"]
[White "Danielyan, Vahe"]
[Black "Oparin, Grigoriy"]
[WhiteFideId "13304828"]
[BlackFideId "24125890"]
[WhiteElo "2703"]
[BlackElo "2992"]
[Result "0-1"]
[Round "5"]
[TimeControl "180+1"]
[Date "2023.11.14"]
[WhiteClock "0:00:01"]
[BlackClock "0:00:04"]
[Board "23"]

1. e4 {[%clk 0:02:58]}  c6 {[%clk 0:02:59]} 2. d4 {[%clk 0:02:53]}  d5 {[%clk 0:03:00]} 3. exd5 {[%clk 0:02:53]}  cxd5 {[%clk 0:03:01]} 4. Bd3 {[%clk 0:02:54]}  Nc6 {[%clk 0:03:00]} 5. c3 {[%clk 0:02:54]}  Nf6 {[%clk 0:02:59]} 6. Bf4 {[%clk 0:02:52]}  Bg4 {[%clk 0:02:55]} 7. Qb3 {[%clk 0:02:52]}  Qd7 {[%clk 0:02:55]} 8. Nd2 {[%clk 0:02:51]}  e6 {[%clk 0:02:55]} 9. Ngf3 {[%clk 0:02:51]}  Bd6 {[%clk 0:02:55]} 10. Bg3 {[%clk 0:02:51]}  O-O {[%clk 0:02:55]} 11. O-O {[%clk 0:02:50]}  Bxg3 {[%clk 0:02:52]} 12. hxg3 {[%clk 0:02:49]}  Qc7 {[%clk 0:02:52]} 13. Rae1 {[%clk 0:02:47]}  Bh5 {[%clk 0:02:52]} 14. Ne5 {[%clk 0:02:40]}  Rab8 {[%clk 0:02:51]} 15. f4 {[%clk 0:02:36]}  Ng4 {[%clk 0:02:31]} 16. Ndf3 {[%clk 0:02:21]}  f6 {[%clk 0:02:23]} 17. Nxc6 {[%clk 0:02:15]}  Qxc6 {[%clk 0:02:24]} 18. Qc2 {[%clk 0:02:06]}  Kh8 {[%clk 0:01:54]} 19. Qe2 {[%clk 0:01:27]}  Bf7 {[%clk 0:01:02]} 20. Ng5 {[%clk 0:01:21]}  fxg5 {[%clk 0:00:42]} 21. Qxg4 {[%clk 0:01:20]}  gxf4 {[%clk 0:00:43]} 22. gxf4 {[%clk 0:01:11]}  Bg8 {[%clk 0:00:39]} 23. Re5 {[%clk 0:01:12]}  Rf6 {[%clk 0:00:40]} 24. Rf3 {[%clk 0:01:06]}  Rbf8 {[%clk 0:00:39]} 25. Rh5 {[%clk 0:00:51]}  Qc7 {[%clk 0:00:31]} 26. g3 {[%clk 0:00:33]}  h6 {[%clk 0:00:25]} 27. Rf2 {[%clk 0:00:32]}  Bh7 {[%clk 0:00:25]} 28. Bxh7 {[%clk 0:00:31]}  Kxh7 {[%clk 0:00:25]} 29. Re5 {[%clk 0:00:31]}  Rg6 {[%clk 0:00:25]} 30. Qf3 {[%clk 0:00:29]}  Qa5 {[%clk 0:00:23]} 31. a3 {[%clk 0:00:28]}  Qb6 {[%clk 0:00:20]} 32. Kg2 {[%clk 0:00:28]}  Qd6 {[%clk 0:00:19]} 33. Rfe2 {[%clk 0:00:28]}  Rff6 {[%clk 0:00:19]} 34. Qh5 {[%clk 0:00:25]}  Kg8 {[%clk 0:00:17]} 35. R2e3 {[%clk 0:00:18]}  Kh7 {[%clk 0:00:17]} 36. Re2 {[%clk 0:00:18]}  b5 {[%clk 0:00:14]} 37. Kh2 {[%clk 0:00:13]}  a5 {[%clk 0:00:14]} 38. R2e3 {[%clk 0:00:06]}  b4 {[%clk 0:00:14]} 39. cxb4 {[%clk 0:00:05]}  axb4 {[%clk 0:00:15]} 40. a4 {[%clk 0:00:06]}  Qb6 {[%clk 0:00:14]} 41. Qd1 {[%clk 0:00:05]}  Qa6 {[%clk 0:00:10]} 42. Qc2 {[%clk 0:00:05]}  Kh8 {[%clk 0:00:07]} 43. f5 {[%clk 0:00:05]}  exf5 {[%clk 0:00:07]} 44. Rxf5 {[%clk 0:00:06]}  Rxf5 {[%clk 0:00:05]} 45. Qxf5 {[%clk 0:00:07]}  Kh7 {[%clk 0:00:05]} 46. a5 {[%clk 0:00:06]}  Qc6 {[%clk 0:00:03]} 47. Re7 {[%clk 0:00:02]}  Qd6 {[%clk 0:00:03]} 48. Rd7 {[%clk 0:00:02]}  Qxg3+ {[%clk 0:00:03]} 49. Kh1 {[%clk 0:00:01]}  Qg2# {[%clk 0:00:04]} 0-1


[Site "https://www.chess.com"]

[Event "Titled Tuesday Blitz November 14 Early 2023"]
[White "Gholami Orimi, Mahdi"]
[Black "Ilkhomi, Jaloliddin"]
[WhiteFideId "12558486"]
[BlackFideId "14700948"]
[WhiteElo "2961"]
[BlackElo "2700"]
[Result "1-0"]
[Round "5"]
[TimeControl "180+1"]
[Date "2023.11.14"]
[WhiteClock "0:01:21"]
[BlackClock "0:00:01"]
[Board "25"]

1. d4 {[%clk 0:02:52]}  Nf6 {[%clk 0:02:59]} 2. c4 {[%clk 0:02:52]}  e6 {[%clk 0:02:58]} 3. Nc3 {[%clk 0:02:53]}  Bb4 {[%clk 0:02:57]} 4. e3 {[%clk 0:02:52]}  O-O {[%clk 0:02:57]} 5. Bd3 {[%clk 0:02:53]}  b6 {[%clk 0:02:57]} 6. Ne2 {[%clk 0:02:52]}  Bb7 {[%clk 0:02:56]} 7. O-O {[%clk 0:02:53]}  d5 {[%clk 0:02:56]} 8. cxd5 {[%clk 0:02:50]}  exd5 {[%clk 0:02:54]} 9. a3 {[%clk 0:02:51]}  Bd6 {[%clk 0:02:52]} 10. b4 {[%clk 0:02:51]}  a6 {[%clk 0:02:49]} 11. h3 {[%clk 0:02:49]}  Nbd7 {[%clk 0:02:47]} 12. Rb1 {[%clk 0:02:49]}  Qe7 {[%clk 0:02:37]} 13. Nf4 {[%clk 0:02:48]}  Bxf4 {[%clk 0:02:11]} 14. exf4 {[%clk 0:02:48]}  Qd6 {[%clk 0:02:12]} 15. f3 {[%clk 0:02:41]}  Rae8 {[%clk 0:02:11]} 16. Qc2 {[%clk 0:02:20]}  Re7 {[%clk 0:02:06]} 17. Qf2 {[%clk 0:02:14]}  Rfe8 {[%clk 0:02:03]} 18. Bd2 {[%clk 0:02:13]}  Nf8 {[%clk 0:02:00]} 19. f5 {[%clk 0:02:11]}  Bc8 {[%clk 0:01:48]} 20. g4 {[%clk 0:02:08]}  h6 {[%clk 0:01:48]} 21. Kg2 {[%clk 0:02:07]}  N8h7 {[%clk 0:01:42]} 22. Qg3 {[%clk 0:02:07]}  Qxg3+ {[%clk 0:01:12]} 23. Kxg3 {[%clk 0:02:08]}  Rd8 {[%clk 0:01:10]} 24. Rfe1 {[%clk 0:02:07]}  Rxe1 {[%clk 0:01:06]} 25. Rxe1 {[%clk 0:02:08]}  Kf8 {[%clk 0:00:59]} 26. Bf4 {[%clk 0:02:07]}  Ne8 {[%clk 0:00:55]} 27. b5 {[%clk 0:02:02]}  axb5 {[%clk 0:00:27]} 28. Nxb5 {[%clk 0:02:02]}  c6 {[%clk 0:00:27]} 29. Nc7 {[%clk 0:01:58]}  Nhf6 {[%clk 0:00:20]} 30. a4 {[%clk 0:01:48]}  c5 {[%clk 0:00:20]} 31. Nxe8 {[%clk 0:01:42]}  Nxe8 {[%clk 0:00:19]} 32. Rb1 {[%clk 0:01:39]}  c4 {[%clk 0:00:18]} 33. Bc2 {[%clk 0:01:39]}  Bd7 {[%clk 0:00:18]} 34. Rxb6 {[%clk 0:01:40]}  Ra8 {[%clk 0:00:18]} 35. Rb8 {[%clk 0:01:33]}  Ra6 {[%clk 0:00:18]} 36. Bd2 {[%clk 0:01:27]}  Ke7 {[%clk 0:00:15]} 37. Bb4+ {[%clk 0:01:26]}  Kf6 {[%clk 0:00:09]} 38. a5 {[%clk 0:01:25]}  Nd6 {[%clk 0:00:07]} 39. h4 {[%clk 0:01:23]}  g6 {[%clk 0:00:04]} 40. fxg6 {[%clk 0:01:20]}  fxg6 {[%clk 0:00:05]} 41. Rg8 {[%clk 0:01:21]}  Be8 {[%clk 0:00:04]} 42. Bxd6 {[%clk 0:01:21]}  Bf7 {[%clk 0:00:04]} 43. Be5+ {[%clk 0:01:21]}  Ke7 {[%clk 0:00:04]} 44. Rg7 {[%clk 0:01:21]}  Rxa5 {[%clk 0:00:01]} 45. Bxg6 {[%clk 0:01:21]} 1-0


[Site "https://www.chess.com"]

[Event "Titled Tuesday Blitz November 14 Early 2023"]
[White "Martinez Ramirez, Lennis"]
[Black "Galchenko, Matvey"]
[WhiteFideId "3509079"]
[BlackFideId "24175480"]
[WhiteElo "2699"]
[BlackElo "2943"]
[Result "1/2-1/2"]
[Round "5"]
[TimeControl "180+1"]
[Date "2023.11.14"]
[WhiteClock "0:00:10"]
[BlackClock "0:00:09"]
[Board "26"]

1. e4 {[%clk 0:02:59]}  e6 {[%clk 0:02:58]} 2. d4 {[%clk 0:02:59]}  d5 {[%clk 0:02:58]} 3. Nd2 {[%clk 0:02:58]}  a6 {[%clk 0:02:58]} 4. Bd3 {[%clk 0:02:54]}  c5 {[%clk 0:02:58]} 5. exd5 {[%clk 0:02:54]}  exd5 {[%clk 0:02:59]} 6. Ngf3 {[%clk 0:02:52]}  Nf6 {[%clk 0:02:58]} 7. O-O {[%clk 0:02:51]}  Be7 {[%clk 0:02:58]} 8. dxc5 {[%clk 0:02:50]}  Bxc5 {[%clk 0:02:59]} 9. Re1+ {[%clk 0:02:50]}  Be6 {[%clk 0:02:59]} 10. Nb3 {[%clk 0:02:49]}  Bb6 {[%clk 0:02:59]} 11. Nbd4 {[%clk 0:02:48]}  O-O {[%clk 0:02:57]} 12. Nxe6 {[%clk 0:02:47]}  fxe6 {[%clk 0:02:58]} 13. Rxe6 {[%clk 0:02:47]}  Nc6 {[%clk 0:02:57]} 14. Be3 {[%clk 0:02:37]}  Bc7 {[%clk 0:02:49]} 15. Bc5 {[%clk 0:02:28]}  Re8 {[%clk 0:02:20]} 16. Qe2 {[%clk 0:02:25]}  Ne5 {[%clk 0:01:32]} 17. Bf5 {[%clk 0:02:01]}  Nxf3+ {[%clk 0:01:29]} 18. Qxf3 {[%clk 0:01:59]}  Rxe6 {[%clk 0:01:26]} 19. Bxe6+ {[%clk 0:01:57]}  Kh8 {[%clk 0:01:26]} 20. Bd4 {[%clk 0:01:50]}  Bxh2+ {[%clk 0:01:03]} 21. Kxh2 {[%clk 0:01:33]}  Qd6+ {[%clk 0:01:02]} 22. Kg1 {[%clk 0:01:31]}  Qxe6 {[%clk 0:01:02]} 23. Bxf6 {[%clk 0:01:31]}  gxf6 {[%clk 0:00:58]} 24. Rd1 {[%clk 0:01:30]}  Rd8 {[%clk 0:00:58]} 25. c4 {[%clk 0:01:25]}  d4 {[%clk 0:00:57]} 26. Qxb7 {[%clk 0:01:25]}  d3 {[%clk 0:00:53]} 27. Qf3 {[%clk 0:01:20]}  d2 {[%clk 0:00:50]} 28. g3 {[%clk 0:01:20]}  Kg7 {[%clk 0:00:48]} 29. Kg2 {[%clk 0:01:20]}  Qxc4 {[%clk 0:00:46]} 30. Qb7+ {[%clk 0:01:08]}  Kg6 {[%clk 0:00:45]} 31. Rh1 {[%clk 0:00:57]}  h5 {[%clk 0:00:15]} 32. Qf3 {[%clk 0:00:57]}  Qb5 {[%clk 0:00:10]} 33. a4 {[%clk 0:00:54]}  Qe5 {[%clk 0:00:07]} 34. b4 {[%clk 0:00:43]}  Rd4 {[%clk 0:00:07]} 35. b5 {[%clk 0:00:42]}  axb5 {[%clk 0:00:08]} 36. axb5 {[%clk 0:00:42]}  Qxb5 {[%clk 0:00:07]} 37. Rd1 {[%clk 0:00:40]}  Qe5 {[%clk 0:00:08]} 38. Rh1 {[%clk 0:00:31]}  Qd5 {[%clk 0:00:07]} 39. Qxd5 {[%clk 0:00:30]}  Rxd5 {[%clk 0:00:08]} 40. Rd1 {[%clk 0:00:29]}  Kg5 {[%clk 0:00:09]} 41. Kf3 {[%clk 0:00:30]}  Kf5 {[%clk 0:00:09]} 42. Ke3 {[%clk 0:00:27]}  Kg4 {[%clk 0:00:09]} 43. Rxd2 {[%clk 0:00:21]}  Re5+ {[%clk 0:00:08]} 44. Kd4 {[%clk 0:00:20]}  Kf3 {[%clk 0:00:09]} 45. Ra2 {[%clk 0:00:17]}  Re1 {[%clk 0:00:09]} 46. Kd5 {[%clk 0:00:07]}  Re5+ {[%clk 0:00:06]} 47. Kd6 {[%clk 0:00:07]}  Re4 {[%clk 0:00:07]} 48. Rb2 {[%clk 0:00:07]}  f5 {[%clk 0:00:07]} 49. Kd5 {[%clk 0:00:07]}  Re1 {[%clk 0:00:06]} 50. Ra2 {[%clk 0:00:07]}  f4 {[%clk 0:00:05]} 51. gxf4 {[%clk 0:00:06]}  h4 {[%clk 0:00:06]} 52. f5 {[%clk 0:00:06]}  h3 {[%clk 0:00:06]} 53. Ra3+ {[%clk 0:00:07]}  Kg2 {[%clk 0:00:06]} 54. Rg3+ {[%clk 0:00:07]}  Kh2 {[%clk 0:00:06]} 55. f6 {[%clk 0:00:06]}  Rf1 {[%clk 0:00:07]} 56. Rf3 {[%clk 0:00:05]}  Kg2 {[%clk 0:00:07]} 57. f7 {[%clk 0:00:05]}  h2 {[%clk 0:00:03]} 58. f8=Q {[%clk 0:00:04]}  h1=Q {[%clk 0:00:04]} 59. Rg3+ {[%clk 0:00:05]}  Kh2+ {[%clk 0:00:04]} 60. Qf3 {[%clk 0:00:05]}  Rd1+ {[%clk 0:00:02]} 61. Ke5 {[%clk 0:00:04]}  Re1+ {[%clk 0:00:02]} 62. Kf4 {[%clk 0:00:04]}  Qxf3+ {[%clk 0:00:03]} 63. Kxf3 {[%clk 0:00:04]}  Re8 {[%clk 0:00:03]} 64. Rg4 {[%clk 0:00:04]}  Kh3 {[%clk 0:00:03]} 65. Rf4 {[%clk 0:00:04]}  Rd8 {[%clk 0:00:03]} 66. Re4 {[%clk 0:00:04]}  Rf8+ {[%clk 0:00:04]} 67. Rf4 {[%clk 0:00:04]}  Re8 {[%clk 0:00:03]} 68. Rf7 {[%clk 0:00:04]}  Kh4 {[%clk 0:00:04]} 69. Kf4 {[%clk 0:00:05]}  Kh5 {[%clk 0:00:04]} 70. f3 {[%clk 0:00:05]}  Kg6 {[%clk 0:00:05]} 71. Rf5 {[%clk 0:00:05]}  Ra8 {[%clk 0:00:05]} 72. Rb5 {[%clk 0:00:05]}  Ra4+ {[%clk 0:00:05]} 73. Ke5 {[%clk 0:00:05]}  Kf7 {[%clk 0:00:06]} 74. Rb7+ {[%clk 0:00:05]}  Kf8 {[%clk 0:00:06]} 75. Rb6 {[%clk 0:00:05]}  Kf7 {[%clk 0:00:06]} 76. Rb7+ {[%clk 0:00:05]}  Kf8 {[%clk 0:00:06]} 77. f4 {[%clk 0:00:05]}  Ra6 {[%clk 0:00:06]} 78. Kf5 {[%clk 0:00:05]}  Rc6 {[%clk 0:00:07]} 79. Rd7 {[%clk 0:00:05]}  Ra6 {[%clk 0:00:06]} 80. Rh7 {[%clk 0:00:05]}  Rb6 {[%clk 0:00:07]} 81. Ke5 {[%clk 0:00:05]}  Ra6 {[%clk 0:00:07]} 82. Rd7 {[%clk 0:00:05]}  Rb6 {[%clk 0:00:06]} 83. Rd5 {[%clk 0:00:04]}  Ra6 {[%clk 0:00:07]} 84. Kf5 {[%clk 0:00:04]}  Rb6 {[%clk 0:00:07]} 85. Re5 {[%clk 0:00:05]}  Ra6 {[%clk 0:00:08]} 86. Re6 {[%clk 0:00:05]}  Ra5+ {[%clk 0:00:07]} 87. Kf6 {[%clk 0:00:05]}  Ra7 {[%clk 0:00:04]} 88. Rb6 {[%clk 0:00:05]}  Rf7+ {[%clk 0:00:04]} 89. Kg5 {[%clk 0:00:06]}  Rg7+ {[%clk 0:00:05]} 90. Kh6 {[%clk 0:00:05]}  Ra7 {[%clk 0:00:04]} 91. f5 {[%clk 0:00:05]}  Kf7 {[%clk 0:00:04]} 92. Kg5 {[%clk 0:00:04]}  Rc7 {[%clk 0:00:04]} 93. Rh6 {[%clk 0:00:04]}  Rc1 {[%clk 0:00:03]} 94. Rh7+ {[%clk 0:00:04]}  Kg8 {[%clk 0:00:04]} 95. Rb7 {[%clk 0:00:05]}  Rc6 {[%clk 0:00:04]} 96. Re7 {[%clk 0:00:05]}  Kf8 {[%clk 0:00:04]} 97. Re6 {[%clk 0:00:05]}  Rxe6 {[%clk 0:00:04]} 98. fxe6 {[%clk 0:00:06]}  Ke7 {[%clk 0:00:05]} 99. Kf5 {[%clk 0:00:06]}  Ke8 {[%clk 0:00:06]} 100. Kf6 {[%clk 0:00:07]}  Kf8 {[%clk 0:00:06]} 101. Ke5 {[%clk 0:00:07]}  Ke7 {[%clk 0:00:07]} 102. Kf5 {[%clk 0:00:08]}  Ke8 {[%clk 0:00:08]} 103. Kf6 {[%clk 0:00:09]}  Kf8 {[%clk 0:00:08]} 104. e7+ {[%clk 0:00:10]}  Ke8 {[%clk 0:00:09]} 105. Ke6 {[%clk 0:00:10]} 1/2-1/2


[Site "https://www.chess.com"]

[Event "Titled Tuesday Blitz November 14 Early 2023"]
[White "Rustemov, Alexander"]
[Black "Timerkhanov, Alexander"]
[WhiteFideId "4119002"]
[BlackFideId "24177938"]
[WhiteElo "2910"]
[BlackElo "2687"]
[Result "0-1"]
[Round "5"]
[TimeControl "180+1"]
[Date "2023.11.14"]
[WhiteClock "0:00:22"]
[BlackClock "0:00:17"]
[Board "28"]

1. d4 {[%clk 0:02:57]}  d5 {[%clk 0:02:59]} 2. c4 {[%clk 0:02:55]}  c6 {[%clk 0:02:59]} 3. Nc3 {[%clk 0:02:53]}  Nf6 {[%clk 0:02:59]} 4. e3 {[%clk 0:02:54]}  a6 {[%clk 0:02:57]} 5. Qc2 {[%clk 0:02:53]}  Bg4 {[%clk 0:02:53]} 6. Bd3 {[%clk 0:02:50]}  e6 {[%clk 0:02:51]} 7. b3 {[%clk 0:02:42]}  Nbd7 {[%clk 0:02:50]} 8. Bb2 {[%clk 0:02:42]}  Be7 {[%clk 0:02:31]} 9. Nge2 {[%clk 0:02:37]}  Bh5 {[%clk 0:02:17]} 10. Nf4 {[%clk 0:02:37]}  Bg6 {[%clk 0:02:17]} 11. Nxg6 {[%clk 0:02:36]}  hxg6 {[%clk 0:02:18]} 12. h3 {[%clk 0:02:32]}  O-O {[%clk 0:02:11]} 13. O-O {[%clk 0:02:32]}  Re8 {[%clk 0:02:09]} 14. Rac1 {[%clk 0:02:31]}  Bd6 {[%clk 0:02:00]} 15. Rfd1 {[%clk 0:02:30]}  Qe7 {[%clk 0:02:00]} 16. Bf1 {[%clk 0:02:27]}  b5 {[%clk 0:01:54]} 17. cxd5 {[%clk 0:02:25]}  cxd5 {[%clk 0:01:47]} 18. a4 {[%clk 0:02:24]}  b4 {[%clk 0:01:46]} 19. Nb1 {[%clk 0:02:21]}  Ne4 {[%clk 0:01:40]} 20. Nd2 {[%clk 0:02:16]}  Nxd2 {[%clk 0:01:39]} 21. Rxd2 {[%clk 0:02:14]}  Nf6 {[%clk 0:01:39]} 22. Qc6 {[%clk 0:02:08]}  Ne4 {[%clk 0:01:37]} 23. Rdc2 {[%clk 0:02:08]}  a5 {[%clk 0:01:36]} 24. Bd3 {[%clk 0:02:03]}  f5 {[%clk 0:01:29]} 25. g3 {[%clk 0:01:39]}  Red8 {[%clk 0:01:27]} 26. Bf1 {[%clk 0:01:38]}  Ra7 {[%clk 0:01:13]} 27. Qb5 {[%clk 0:01:34]}  Raa8 {[%clk 0:01:07]} 28. Rc6 {[%clk 0:01:31]}  Qg5 {[%clk 0:01:06]} 29. Qe2 {[%clk 0:01:27]}  f4 {[%clk 0:00:50]} 30. exf4 {[%clk 0:01:24]}  Bxf4 {[%clk 0:00:50]} 31. Re1 {[%clk 0:01:21]}  Bd2 {[%clk 0:00:49]} 32. Rd1 {[%clk 0:01:14]}  Bc3 {[%clk 0:00:42]} 33. Bc1 {[%clk 0:01:10]}  Qf6 {[%clk 0:00:39]} 34. Bg2 {[%clk 0:01:09]}  Bxd4 {[%clk 0:00:38]} 35. Bxe4 {[%clk 0:01:00]}  dxe4 {[%clk 0:00:39]} 36. Kg2 {[%clk 0:00:56]}  Rd5 {[%clk 0:00:31]} 37. Rf1 {[%clk 0:00:53]}  Rf8 {[%clk 0:00:27]} 38. Be3 {[%clk 0:00:50]}  Qf3+ {[%clk 0:00:25]} 39. Qxf3 {[%clk 0:00:49]}  exf3+ {[%clk 0:00:26]} 40. Kg1 {[%clk 0:00:48]}  Bxe3 {[%clk 0:00:27]} 41. fxe3 {[%clk 0:00:47]}  Re5 {[%clk 0:00:27]} 42. Kf2 {[%clk 0:00:45]}  Rd8 {[%clk 0:00:20]} 43. Kxf3 {[%clk 0:00:44]}  Rd3 {[%clk 0:00:20]} 44. Rc8+ {[%clk 0:00:29]}  Kh7 {[%clk 0:00:20]} 45. Kg4 {[%clk 0:00:25]}  Rexe3 {[%clk 0:00:17]} 46. Rff8 {[%clk 0:00:25]}  Rxg3+ {[%clk 0:00:17]} 47. Kh4 {[%clk 0:00:22]}  g5+ {[%clk 0:00:16]} 48. Kh5 {[%clk 0:00:22]}  g6# {[%clk 0:00:17]} 0-1


[Site "https://www.chess.com"]

[Event "Titled Tuesday Blitz November 14 Early 2023"]
[White "Salinas Herrera, Pablo"]
[Black "Skliarov, Viktor"]
[WhiteFideId "3407128"]
[BlackFideId "14106736"]
[WhiteElo "2896"]
[BlackElo "2673"]
[Result "1-0"]
[Round "5"]
[TimeControl "180+1"]
[Date "2023.11.14"]
[WhiteClock "0:00:48"]
[BlackClock "0:00:01"]
[Board "30"]

1. d4 {[%clk 0:02:58]}  Nf6 {[%clk 0:02:57]} 2. Nf3 {[%clk 0:02:58]}  g6 {[%clk 0:02:57]} 3. Nbd2 {[%clk 0:02:57]}  Bg7 {[%clk 0:02:55]} 4. e4 {[%clk 0:02:57]}  d6 {[%clk 0:02:56]} 5. Bb5+ {[%clk 0:02:57]}  c6 {[%clk 0:02:56]} 6. Bd3 {[%clk 0:02:58]}  O-O {[%clk 0:02:55]} 7. O-O {[%clk 0:02:58]}  Bg4 {[%clk 0:02:54]} 8. h3 {[%clk 0:02:59]}  Bxf3 {[%clk 0:02:54]} 9. Nxf3 {[%clk 0:02:59]}  Qc7 {[%clk 0:02:54]} 10. Re1 {[%clk 0:02:59]}  e5 {[%clk 0:02:52]} 11. c3 {[%clk 0:03:00]}  Nbd7 {[%clk 0:02:52]} 12. Qc2 {[%clk 0:02:59]}  Rad8 {[%clk 0:02:51]} 13. Be3 {[%clk 0:02:57]}  a5 {[%clk 0:02:50]} 14. Rad1 {[%clk 0:02:56]}  h6 {[%clk 0:02:50]} 15. Qc1 {[%clk 0:02:53]}  Kh7 {[%clk 0:02:50]} 16. Bc2 {[%clk 0:02:53]}  Rfe8 {[%clk 0:02:40]} 17. dxe5 {[%clk 0:02:53]}  Nxe5 {[%clk 0:02:35]} 18. Nxe5 {[%clk 0:02:51]}  dxe5 {[%clk 0:02:31]} 19. Rxd8 {[%clk 0:02:50]}  Rxd8 {[%clk 0:02:31]} 20. Rd1 {[%clk 0:02:49]}  Rxd1+ {[%clk 0:02:27]} 21. Qxd1 {[%clk 0:02:49]}  Bf8 {[%clk 0:02:20]} 22. a3 {[%clk 0:02:48]}  b5 {[%clk 0:02:13]} 23. b4 {[%clk 0:02:46]}  axb4 {[%clk 0:01:58]} 24. axb4 {[%clk 0:02:45]}  Qd7 {[%clk 0:01:52]} 25. Qf3 {[%clk 0:02:40]}  Ng8 {[%clk 0:01:11]} 26. Bb3 {[%clk 0:02:38]}  Kg7 {[%clk 0:01:11]} 27. Qe2 {[%clk 0:02:34]}  Nf6 {[%clk 0:01:02]} 28. f3 {[%clk 0:02:33]}  Nh5 {[%clk 0:01:01]} 29. Kh2 {[%clk 0:02:30]}  Nf4 {[%clk 0:00:59]} 30. Qc2 {[%clk 0:02:23]}  h5 {[%clk 0:00:37]} 31. Qc1 {[%clk 0:02:11]}  Bd6 {[%clk 0:00:17]} 32. Qd2 {[%clk 0:02:08]}  Qe7 {[%clk 0:00:17]} 33. g3 {[%clk 0:01:52]}  Ne6 {[%clk 0:00:17]} 34. h4 {[%clk 0:01:53]}  c5 {[%clk 0:00:13]} 35. Bxe6 {[%clk 0:01:50]}  fxe6 {[%clk 0:00:12]} 36. Bh6+ {[%clk 0:01:27]}  Kh7 {[%clk 0:00:11]} 37. Bg5 {[%clk 0:01:27]}  Qc7 {[%clk 0:00:11]} 38. bxc5 {[%clk 0:01:27]}  Bxc5 {[%clk 0:00:07]} 39. Qe2 {[%clk 0:01:25]}  Qb6 {[%clk 0:00:03]} 40. Qd3 {[%clk 0:01:17]}  Qc7 {[%clk 0:00:03]} 41. Qxb5 {[%clk 0:01:16]}  Bf8 {[%clk 0:00:03]} 42. c4 {[%clk 0:01:11]}  Qa7 {[%clk 0:00:03]} 43. Qb2 {[%clk 0:00:56]}  Qc5 {[%clk 0:00:02]} 44. Qe2 {[%clk 0:00:53]}  Qd4 {[%clk 0:00:02]} 45. Be3 {[%clk 0:00:53]}  Qa1 {[%clk 0:00:02]} 46. c5 {[%clk 0:00:53]}  Qa4 {[%clk 0:00:02]} 47. Qd2 {[%clk 0:00:51]}  Qc6 {[%clk 0:00:02]} 48. Qc3 {[%clk 0:00:51]}  Qc7 {[%clk 0:00:02]} 49. c6 {[%clk 0:00:50]}  Bd6 {[%clk 0:00:02]} 50. Kg2 {[%clk 0:00:50]}  Kg7 {[%clk 0:00:02]} 51. Qc4 {[%clk 0:00:48]}  Kf7 {[%clk 0:00:03]} 52. Qb5 {[%clk 0:00:49]}  Ke8 {[%clk 0:00:03]} 53. Bb6 {[%clk 0:00:49]}  Qc8 {[%clk 0:00:03]} 54. c7+ {[%clk 0:00:48]}  Ke7 {[%clk 0:00:01]} 55. Qc6 {[%clk 0:00:48]} 1-0


[Site "https://www.chess.com"]